bitfinex-derivatives/quotes_ETHF0:USTF0_20241007
["timestamp","ask_amount","ask_price","bid_price","bid_amount"]
[1728263805272,1.15097,2488.0,2487.4,3.2078]
[1728263805481,0.28137,2487.9,2487.5,0.28141]
[1728263805884,1.15097,2488.0,2487.5,0.28142]
[1728263806076,0.28138,2487.9,2487.5,0.28142]
[1728263806473,0.2814,2487.7,2487.3,0.28143]
[1728263807075,3.14,2487.6,2487.2,12.30644]
[1728263807268,3.42141,2487.6,2487.2,12.30644]
[1728263807469,3.14,2487.6,2487.2,12.025]
[1728263807673,1.13132,2487.5,2487.2,12.025]
[1728263807874,0.8499,2487.5,2487.4,0.28143]
[1728263808079,0.8717,2487.7,2487.5,0.28141]
[1728263808281,1.15309,2487.7,2487.4,0.28142]
[1728263808480,0.8717,2487.7,2487.4,0.28142]
[1728263808684,0.8717,2487.7,2487.5,0.28141]
[1728263809182,0.8717,2487.7,2487.2,12.025]
[1728263809368,0.8717,2487.7,2487.4,0.28142]
[1728263810375,3.42139,2487.8,2487.5,0.28142]
[1728263810780,3.14,2487.8,2487.5,0.28142]
[1728263812971,3.14,2487.8,2487.4,0.28142]
[1728263813173,5.17597,2488.0,2487.2,0.876]
[1728263813578,1.7546,2488.0,2487.8,0.28138]
[1728263814172,1.7546,2488.0,2487.4,6.3478]
[1728263814783,1.7546,2488.0,2487.7,0.28139]
[1728263815186,1.7546,2488.0,2487.4,6.3478]
[1728263815481,0.28131,2488.5,2487.8,3.14]
[1728263815676,0.866,2488.5,2488.1,0.28134]
[1728263815877,0.866,2488.5,2488.2,0.28133]
[1728263816082,0.866,2488.5,2488.0,6.3478]
[1728263816286,3.48906,2488.9,2488.2,3.14]
[1728263816478,0.28128,2488.7,2488.2,3.42133]
[1728263816783,0.866,2488.8,2488.3,0.28132]
[1728263817084,0.866,2488.8,2488.4,0.28131]
[1728263817591,0.866,2488.8,2488.5,0.2813]
[1728263817884,0.866,2488.8,2488.6,0.28129]
[1728263818081,0.866,2488.8,2488.5,0.2813]
[1728263818685,4.8815,2489.2,2488.5,0.2813]
[1728263818686,0.8659,2489.2,2488.9,0.28125]
[1728263819080,0.8539,2489.3,2489.1,0.28123]
[1728263819584,3.2078,2489.7,2489.3,0.28121]
[1728263819779,3.14,2490.0,2489.2,3.2078]
[1728263819780,1.735,2489.9,2489.2,3.2078]
[1728263820178,1.735,2489.9,2489.2,6.3478]
[1728263820382,1.735,2489.9,2489.5,0.28119]
[1728263820383,0.8539,2489.9,2489.5,0.28119]
[1728263820582,0.8539,2489.9,2489.3,0.8588]
[1728263820583,0.8539,2489.9,2489.6,0.28118]
[1728263820976,0.73705038,2490.5,2489.8,0.28115]
[1728263820977,0.2811,2490.3,2489.8,0.28115]
[1728263821179,3.9939,2490.4,2489.6,4.002]
[1728263821484,3.14,2490.2,2489.4,3.2078]
[1728263821682,0.28116,2489.8,2489.4,3.2078]
[1728263821883,3.14,2490.0,2489.4,3.2078]
[1728263822087,0.28116,2489.8,2489.4,3.2078]
[1728263822284,0.8805,2489.9,2489.5,0.28119]
[1728263822485,0.8805,2489.9,2489.4,3.2078]
[1728263822486,0.8805,2489.9,2489.6,0.28118]
[1728263822693,0.8805,2489.9,2489.3,1.7602]
[1728263822694,0.8539,2490.4,2490.0,0.28113]
[1728263822886,0.28111,2490.3,2489.8,0.28115]
[1728263823588,0.8539,2490.4,2490.2,0.28111]
[1728263823789,0.8539,2490.4,2489.7,3.2078]
[1728263823790,0.8539,2490.4,2489.8,0.9151]
[1728263824094,0.8539,2490.4,2490.1,0.28112]
[1728263824686,0.8539,2490.4,2489.8,0.9151]
[1728263825102,0.28111,2490.3,2489.8,0.9151]
[1728263825387,0.8539,2490.4,2489.8,0.9151]
[1728263825594,0.8539,2490.4,2490.0,0.28113]
[1728263825989,0.8539,2490.4,2490.1,0.28112]
[1728263826490,0.8539,2490.4,2489.9,0.89]
[1728263826683,0.8539,2490.4,2489.5,11.149]
[1728263826684,0.28114,2490.0,2489.5,11.149]
[1728263826885,3.86,2490.2,2489.4,3.2078]
[1728263826886,0.28112,2490.2,2489.4,3.2078]
[1728263827089,0.8539,2490.4,2489.7,3.2078]
[1728263827283,0.8539,2490.4,2490.0,0.28113]
[1728263827491,0.8539,2490.4,2489.8,0.89]
[1728263827691,0.2811,2490.3,2489.8,0.89]
[1728263827991,0.2811,2490.3,2489.7,0.28116]
[1728263827992,0.28111,2490.3,2489.7,0.28116]
[1728263828291,4.0617,2490.4,2489.8,0.28115]
[1728263828292,4.34279,2490.4,2489.8,0.28115]
[1728263828490,4.34279,2490.4,2489.5,1.843]
[1728263828790,0.28111,2490.2,2489.6,0.28117]
[1728263828989,4.0617,2490.4,2489.5,1.843]
[1728263829387,0.8539,2490.4,2489.7,3.2078]
[1728263829693,0.8539,2490.4,2489.9,0.28114]
[1728263829694,1.13499,2490.4,2489.9,0.28114]
[1728263830085,1.13499,2490.4,2490.0,0.28113]
[1728263830086,0.8539,2490.4,2490.0,0.28113]
[1728263830294,0.8539,2490.4,2489.8,0.28115]
[1728263830496,0.28111,2490.3,2489.8,0.28115]
[1728263830685,0.28111,2490.3,2489.9,0.28114]
[1728263830886,0.28111,2490.3,2489.8,0.28115]
[1728263831398,0.8539,2490.4,2489.7,3.2078]
[1728263831782,0.8539,2490.4,2490.1,0.28112]
[1728263832395,1.13499,2490.4,2489.9,0.28114]
[1728263832597,0.8539,2490.4,2489.7,3.2078]
[1728263832895,1.13499,2490.4,2489.9,0.28114]
[1728263833286,0.8539,2490.4,2490.3,0.2811]
[1728263833489,3.2078,2491.2,2490.3,3.2078]
[1728263833699,3.2078,2491.2,2490.7,0.28105]
[1728263833700,0.28102,2491.1,2490.7,0.28105]
[1728263833994,3.48881,2491.2,2490.7,0.28105]
[1728263834190,6.86456106,2492.1,2490.9,3.2078]
[1728263834191,3.2078,2491.6,2490.9,3.2078]
[1728263834396,0.71564675,2492.1,2491.5,0.28096]
[1728263834397,4.39791,2492.0,2491.5,0.28096]
[1728263834585,4.39791,2492.0,2490.8,12.07785157]
[1728263834586,0.28095,2491.7,2491.1,0.281]
[1728263834785,0.28092,2491.9,2491.1,0.281]
[1728263834988,4.117,2492.0,2490.9,3.2078]
[1728263835188,4.117,2492.0,2491.0,0.9402]
[1728263835189,0.28097,2491.5,2491.0,0.9402]
[1728263835397,0.28097,2491.5,2490.9,3.2078]
[1728263835398,3.86,2491.5,2490.9,3.2078]
[1728263835594,4.9723,2491.4,2490.9,3.2078]
[1728263835893,0.28101,2491.2,2490.9,3.2078]
[1728263836098,0.28101,2491.1,2490.9,3.2078]
[1728263836492,4.0144,2491.0,2490.4,1.8758]
[1728263836794,3.2078,2491.1,2490.4,0.9402]
[1728263837197,0.28106,2490.7,2490.1,0.28112]
[1728263837392,0.28105,2490.8,2490.2,0.28111]
[1728263837798,0.8683,2490.7,2490.2,0.28111]
[1728263838189,0.8683,2490.7,2490.1,0.9061]
[1728263838391,0.8683,2490.7,2490.0,0.8721]
[1728263838595,0.9059,2490.6,2490.1,0.28112]
[1728263838796,0.9059,2490.6,2490.0,0.8721]
[1728263838990,0.28108,2490.5,2490.0,0.8721]
[1728263839301,0.9059,2490.6,2490.0,0.8721]
[1728263839496,0.28108,2490.5,2490.0,0.8721]
[1728263840696,1.18697,2490.6,2490.0,0.8721]
[1728263841001,0.28108,2490.5,2490.0,1.15323]
[1728263841195,0.28108,2490.5,2490.0,0.8721]
[1728263841402,0.28109,2490.4,2490.0,0.8721]
[1728263841993,0.28109,2490.4,2489.6,3.2078]
[1728263841994,0.28115,2489.9,2489.6,3.2078]
[1728263842199,0.28115,2489.9,2489.3,6.09011]
[1728263842392,3.2078,2490.1,2489.3,6.09011]
[1728263842393,1.17656,2489.8,2489.3,6.09011]
[1728263842599,0.28117,2489.7,2489.3,5.8089]
[1728263842903,0.28117,2489.7,2489.3,2.6011]
[1728263843106,0.28117,2489.7,2489.3,1.7201]
[1728263843293,0.8954,2489.8,2489.3,2.00131]
[1728263843596,0.8954,2489.8,2489.3,1.7201]
[1728263843804,0.28118,2489.6,2489.3,1.7201]
[1728263843995,0.8954,2489.8,2488.8,2.11716]
[1728263843996,0.28121,2489.3,2488.8,2.11716]
[1728263844798,3.2078,2489.5,2488.8,0.9113]
[1728263844995,3.2078,2489.5,2488.4,3.2078]
[1728263845201,3.2078,2489.5,2488.3,10.044]
[1728263845202,0.28128,2488.8,2488.3,0.9113]
[1728263845900,0.8901,2489.1,2488.3,0.9113]
[1728263846096,0.8901,2489.1,2488.6,0.28129]
[1728263846302,0.8901,2489.1,2488.7,0.28127]
[1728263846603,3.2078,2489.6,2488.7,3.2078]
[1728263846902,0.2812,2489.5,2488.9,0.28125]
[1728263847099,0.2812,2489.5,2488.9,0.28126]
[1728263847498,3.2078,2489.6,2488.8,0.8761]
[1728263847699,3.48898,2489.6,2489.0,0.28124]
[1728263847900,3.2078,2489.6,2489.0,0.28124]
[1728263848101,3.2078,2489.6,2488.8,0.8761]
[1728263848308,0.28119,2489.5,2488.9,0.28125]
[1728263848710,0.28119,2489.5,2488.8,0.8761]
[1728263848910,0.28119,2489.5,2489.0,0.28125]
[1728263849110,3.2078,2489.6,2489.0,0.28125]
[1728263849414,0.28119,2489.5,2489.0,0.28125]
[1728263849907,3.2078,2489.6,2489.3,0.28121]
[1728263850104,3.2078,2489.6,2489.2,0.28121]
[1728263850305,3.2078,2489.6,2489.1,0.9031]
[1728263850508,3.2078,2489.6,2489.2,0.28122]
[1728263851303,3.2078,2489.6,2489.1,0.9031]
[1728263851512,3.48899,2489.6,2489.1,1.18433]
[1728263851807,0.28119,2489.5,2489.1,0.9031]
[1728263852306,3.48898,2489.6,2489.1,1.18433]
[1728263853307,3.2078,2489.6,2489.1,0.9031]
[1728263853502,3.2078,2489.6,2489.2,0.28122]
[1728263853910,0.28119,2489.5,2489.1,1.18433]
[1728263854608,0.28121,2489.3,2489.1,0.9031]
[1728263854807,3.2078,2489.6,2488.9,0.8943]
[1728263855003,3.2078,2489.6,2488.3,4.19]
[1728263855004,3.2078,2489.3,2488.6,0.8921]
[1728263855210,0.28126,2488.9,2488.6,0.8921]
[1728263855402,0.28125,2489.0,2488.6,0.8921]
[1728263855904,0.28124,2489.1,2488.6,1.17338]
[1728263856110,0.28123,2489.2,2488.7,0.28128]
[1728263856412,0.2812,2489.4,2488.8,0.28127]
[1728263856603,0.9222,2489.5,2489.0,0.28124]
[1728263856604,1.2034,2489.5,2489.0,0.28124]
[1728263856911,0.28121,2489.4,2488.8,0.28126]
[1728263857114,0.28121,2489.4,2488.9,0.28126]
[1728263857304,0.9222,2489.5,2488.6,0.8921]
[1728263857507,3.2078,2489.1,2488.6,0.8921]
[1728263857714,3.48904,2489.1,2488.6,1.17339]
[1728263858000,3.2078,2489.1,2488.6,0.8921]
[1728263858204,3.2078,2489.1,2488.4,0.926]
[1728263858205,0.28126,2488.9,2488.4,0.926]
[1728263858610,0.28125,2489.0,2488.5,0.2813]
[1728263859003,0.28125,2489.0,2488.4,1.20731]
[1728263860606,3.2078,2489.4,2488.4,0.926]
[1728263860909,0.9222,2489.5,2488.4,0.926]
[1728263860910,0.9222,2489.5,2488.8,3.2078]
[1728263861110,0.28121,2489.4,2488.8,3.48907]
[1728263861514,0.28121,2489.4,2488.9,0.28125]
[1728263861907,0.28121,2489.4,2488.9,1.18625]
[1728263862211,0.9222,2489.5,2488.9,0.905]
[1728263862416,0.2812,2489.4,2488.9,1.18625]
[1728263863915,0.8545,2489.8,2488.9,1.18625]
[1728263863916,0.8545,2489.8,2489.1,3.2078]
[1728263864114,0.8545,2489.8,2489.2,0.9102]
[1728263864412,0.8545,2489.8,2489.4,0.2812]
[1728263864721,3.2078,2490.1,2489.4,3.2078]
[1728263865011,2.357,2491.1,2489.4,3.2078]
[1728263865012,0.28109,2490.4,2489.9,0.28114]
[1728263865216,0.28109,2490.4,2489.8,0.28115]
[1728263865405,0.28108,2490.5,2489.9,0.8984]
[1728263865720,3.2078,2490.7,2489.9,0.8984]
[1728263865906,3.2078,2490.7,2490.0,1.769]
[1728263866107,0.28108,2490.6,2490.0,1.769]
[1728263866714,3.2078,2490.7,2490.1,0.28112]
[1728263866715,3.48886,2490.7,2490.1,0.28112]
[1728263867309,3.2078,2490.7,2490.0,1.769]
[1728263867513,4.1545,2491.0,2490.0,4.9768]
[1728263867703,4.1545,2491.0,2490.2,0.28111]
[1728263867704,0.28103,2490.9,2490.2,0.28111]
[1728263868609,0.28103,2490.9,2490.3,0.2811]
[1728263868816,4.43553,2491.0,2490.4,0.28108]
[1728263869107,4.43553,2491.0,2490.3,0.28109]
[1728263869314,0.28105,2490.8,2490.1,0.28112]
[1728263869517,0.28105,2490.8,2490.2,0.28111]
[1728263869902,4.1545,2491.0,2490.0,8.8368]
[1728263870108,0.28104,2490.8,2490.3,0.2811]
[1728263870510,0.28104,2490.8,2490.0,9.55680976]
[1728263870709,0.28104,2490.8,2490.2,0.2811]
[1728263870908,4.1545,2491.0,2490.3,0.28109]
[1728263870909,0.28104,2490.9,2490.3,0.28109]
[1728263871111,4.1545,2491.0,2490.3,0.28109]
[1728263871310,0.28104,2490.8,2490.3,0.28109]
[1728263871710,4.1545,2491.0,2490.2,0.28111]
[1728263871911,4.1545,2491.0,2490.0,8.8368]
[1728263872114,0.28111,2490.3,2490.0,1.769]
[1728263872316,3.2078,2490.6,2490.0,1.769]
[1728263872618,0.2811,2490.4,2490.0,1.769]
[1728263873112,0.9011,2490.5,2490.0,1.769]
[1728263873616,0.2811,2490.4,2490.0,1.769]
[1728263873916,1.18218,2490.5,2490.0,1.769]
[1728263874413,0.28109,2490.4,2490.0,1.769]
[1728263879715,0.28109,2490.4,2490.0,0.8971]
[1728263880818,0.9011,2490.5,2490.0,0.8971]
[1728263881216,0.2811,2490.4,2490.0,0.8971]
[1728263881420,3.2078,2490.3,2489.5,0.8731]
[1728263881820,3.48886,2490.7,2490.2,0.2811]
[1728263882115,0.9056,2490.9,2490.2,0.2811]
[1728263882116,0.28105,2490.8,2490.2,2.0879]
[1728263882315,2.05444,2490.9,2490.3,0.2811]
[1728263882515,0.28105,2490.8,2490.3,1.2085]
[1728263883012,4.27884,2490.9,2490.3,1.2085]
[1728263883326,0.28106,2490.7,2490.3,0.9274]
[1728263883617,3.9978,2490.9,2490.3,0.9274]
[1728263883824,0.28106,2490.7,2490.3,0.9274]
[1728263884323,0.2811,2490.4,2490.2,0.9235]
[1728263884725,0.2811,2490.3,2490.2,0.9235]
[1728263884911,0.28109,2490.4,2490.2,0.9235]
[1728263885111,3.2078,2490.4,2489.7,1.8107]
[1728263885315,0.891,2490.3,2489.7,1.8107]
[1728263885514,0.28111,2490.2,2489.7,1.8107]
[1728263885716,0.28111,2490.2,2489.7,2.09186]
[1728263886313,0.891,2490.3,2489.8,0.28115]
[1728263886724,1.1721,2490.3,2489.8,0.28115]
[1728263887226,0.891,2490.3,2489.7,1.8107]
[1728263887423,0.28112,2490.2,2489.7,2.09186]
[1728263887635,0.28112,2490.2,2489.7,1.8107]
[1728263887813,1.17211,2490.3,2489.8,0.28116]
[1728263888015,3.2078,2490.4,2489.8,0.28116]
[1728263888218,3.2078,2490.4,2489.7,5.6707]
[1728263888426,3.2078,2490.4,2490.0,0.28113]
[1728263888427,3.48889,2490.4,2490.0,0.28113]
[1728263888729,3.2078,2490.4,2490.0,0.28113]
[1728263888921,3.4889,2490.4,2489.9,0.28114]
[1728263889122,3.4889,2490.4,2490.0,0.28113]
[1728263889517,3.2078,2490.4,2489.7,1.8107]
[1728263889927,3.4889,2490.4,2489.9,0.28114]
[1728263890417,0.28111,2490.3,2489.8,0.28115]
[1728263891125,3.2078,2490.4,2489.7,1.8107]
[1728263891326,3.48889,2490.4,2489.9,0.28114]
[1728263891715,3.2078,2490.4,2489.9,0.28114]
[1728263891918,0.2811,2490.3,2489.9,0.28114]
[1728263892117,0.2811,2490.3,2489.7,1.8107]
[1728263892118,3.2078,2490.4,2489.7,1.8107]
[1728263892316,0.28112,2490.2,2489.8,0.28116]
[1728263892718,3.2078,2490.4,2489.8,0.28116]
[1728263892921,0.28111,2490.3,2489.8,0.28115]
[1728263893218,0.28111,2490.2,2489.8,0.28115]
[1728263893721,0.28111,2490.3,2489.8,0.28115]
[1728263894312,0.28111,2490.3,2489.9,0.28114]
[1728263894517,0.28112,2490.2,2489.8,0.28116]
[1728263896719,3.2078,2490.4,2490.2,0.28111]
[1728263897923,2.04707,2490.6,2490.2,0.28111]
[1728263899321,0.861,2490.6,2490.3,0.28109]
[1728263899523,0.28106,2490.7,2490.3,0.28109]
[1728263899727,0.28106,2490.7,2490.4,0.8765]
[1728263899934,3.2078,2490.8,2490.4,0.8765]
[1728263900227,0.28107,2490.6,2490.4,0.8765]
[1728263900430,3.2078,2490.8,2490.4,0.8765]
[1728263900636,3.2078,2490.8,2490.5,0.28108]
[1728263900828,3.2078,2490.8,2490.5,1.21368]
[1728263901933,3.2078,2490.8,2490.5,0.9326]
[1728263902131,0.9012,2491.4,2490.6,7.8752]
[1728263902326,0.9012,2491.4,2490.9,3.2078]
[1728263902327,0.28099,2491.3,2490.9,3.2078]
[1728263902526,0.28099,2491.3,2490.8,0.28104]
[1728263903727,0.9012,2491.4,2490.9,0.28103]
[1728263903929,0.9012,2491.4,2491.0,0.28102]
[1728263904526,0.9012,2491.4,2490.9,3.13]
[1728263904727,1.18218,2491.4,2491.0,0.888]
[1728263905136,0.28099,2491.3,2491.0,0.888]
[1728263905430,0.9012,2491.4,2491.0,0.888]
[1728263905431,1.18218,2491.4,2491.0,0.888]
[1728263905940,0.9012,2491.4,2491.0,1.16902]
[1728263906335,0.9012,2491.4,2491.0,0.888]
[1728263906823,0.9012,2491.4,2491.2,0.28099]
[1728263907223,0.9012,2491.4,2491.0,1.8735]
[1728263907425,0.9012,2491.4,2491.1,0.281]
[1728263907629,0.9012,2491.4,2491.2,0.28099]
[1728263907832,6.61875,2491.7,2491.3,0.28098]
[1728263908139,3.2078,2491.7,2491.3,0.28098]
[1728263908341,0.28095,2491.6,2491.2,0.28099]
[1728263908634,3.48875,2491.7,2491.2,0.28099]
[1728263908840,0.9604,2491.6,2491.2,0.28099]
[1728263909031,0.9604,2491.6,2491.1,0.9123]
[1728263909540,0.9604,2491.6,2491.0,1.8735]
[1728263910139,0.9604,2491.6,2490.6,0.9118]
[1728263910140,0.281,2491.2,2490.7,3.41105]
[1728263910342,3.2078,2491.4,2490.9,3.13]
[1728263910535,3.2078,2491.4,2491.1,0.281]
[1728263910835,3.2078,2491.4,2491.0,0.28101]
[1728263911038,4.44518,2491.4,2491.0,0.28101]
[1728263911942,4.1642,2491.4,2491.0,0.28101]
[1728263912434,4.44518,2491.4,2490.9,0.28102]
[1728263913029,4.44518,2491.4,2490.7,3.13]
[1728263913030,0.28099,2491.3,2490.8,0.28104]
[1728263913737,0.28101,2491.1,2490.7,3.41105]
[1728263913936,0.281,2491.2,2490.7,3.41105]
[1728263915141,4.1642,2491.4,2490.7,3.41105]
[1728263915142,4.1642,2491.4,2490.7,3.13]
[1728263915533,0.28101,2491.2,2490.7,3.41105]
[1728263915734,4.1642,2491.4,2490.8,0.28104]
[1728263915935,4.1642,2491.4,2490.7,3.13]
[1728263916642,4.1642,2491.4,2490.9,0.28103]
[1728263916643,0.28099,2491.3,2490.9,0.28103]
[1728263917037,3.13,2491.1,2490.6,1.8647]
[1728263917238,0.28104,2490.9,2490.6,0.9529]
[1728263917437,0.9066,2491.0,2490.6,0.9529]
[1728263917639,1.18763,2491.0,2490.6,1.23397]
[1728263917943,0.28104,2490.9,2490.6,0.9529]
[1728263918245,0.9066,2491.0,2490.6,0.9529]
[1728263918544,0.9066,2491.0,2490.8,0.28104]
[1728263919441,0.9066,2491.0,2490.7,0.9594]
[1728263919442,3.2078,2491.1,2491.0,0.28102]
[1728263920841,3.2078,2491.1,2490.7,7.2972]
[1728263921047,3.48882,2491.1,2490.7,0.9594]
[1728263921243,3.48882,2491.1,2490.7,1.24045]
[1728263921441,0.28102,2491.0,2490.7,0.9594]
[1728263921643,3.48882,2491.1,2490.7,0.9594]
[1728263921844,3.48882,2491.1,2490.7,1.24045]
[1728263922549,0.28102,2491.0,2490.6,1.23396]
[1728263923355,0.28104,2490.9,2490.6,0.9529]
[1728263923644,0.28104,2490.9,2490.5,4.37957]
[1728263923645,7.04033,2491.1,2490.2,3.13]
[1728263923846,0.28105,2490.7,2490.2,1.227]
[1728263924042,0.28107,2490.6,2490.2,1.227]
[1728263924847,0.28106,2490.7,2490.3,0.2811]
[1728263925447,5.0397,2490.8,2490.2,0.9459]
[1728263925649,5.32075,2490.8,2490.4,0.28108]
[1728263926144,0.7024,2491.6,2490.4,0.28108]
[1728263926145,3.2078,2491.1,2490.4,3.13]
[1728263926446,0.28102,2491.0,2490.6,0.28106]
[1728263926645,6.61882,2491.1,2490.6,0.28106]
[1728263926844,0.28103,2491.0,2490.6,0.28106]
[1728263927657,0.28103,2491.0,2490.4,3.13]
[1728263927658,6.3378,2491.1,2490.4,3.13]
[1728263927855,6.61881,2491.1,2490.7,0.28104]
[1728263928246,3.48881,2491.1,2490.7,0.28104]
[1728263928442,3.2078,2491.1,2490.4,3.13]
[1728263928755,0.28102,2491.0,2490.6,0.28105]
[1728263929654,3.48881,2491.1,2490.7,0.28105]
[1728263929854,3.2078,2491.1,2490.4,3.13]
[1728263930054,3.2078,2491.1,2490.8,0.28104]
[1728263930356,3.48882,2491.1,2490.7,0.28105]
[1728263931553,0.28104,2490.9,2490.4,0.28108]
[1728263931855,6.3378,2491.1,2490.5,0.28107]
[1728263932157,6.3378,2491.1,2490.3,3.2078]
[1728263932354,0.28106,2490.7,2490.2,1.227]
[1728263932557,0.9845,2490.6,2490.2,0.9459]
[1728263932954,1.26557,2490.6,2490.2,0.9459]
[1728263934355,0.9845,2490.6,2489.6,6.58269957]
[1728263934559,3.13,2490.1,2489.7,0.9666]
[1728263935168,0.9317,2490.0,2489.7,0.9666]
[1728263936866,0.9317,2490.0,2489.6,3.48897]
[1728263937053,0.9317,2490.0,2489.8,0.28116]
[1728263937258,0.9164,2490.2,2489.8,0.28114]
[1728263937462,0.9164,2490.2,2489.9,0.28114]
[1728263937962,0.9164,2490.2,2489.8,0.28115]
[1728263938163,0.9164,2490.2,2489.6,3.2078]
[1728263938356,1.19751,2490.2,2489.7,0.28116]
[1728263939262,0.9164,2490.2,2489.6,3.2078]
[1728263939467,0.9164,2490.2,2489.7,0.28117]
[1728263940270,0.9164,2490.2,2489.8,0.28116]
[1728263940563,1.25029,2490.4,2489.9,1.21274]
[1728263940765,3.2078,2490.3,2490.0,0.9578]
[1728263941669,3.2078,2490.3,2490.0,1.23893]
[1728263942264,3.2078,2490.3,2490.0,0.9578]
[1728263942469,3.4889,2490.3,2490.0,0.9578]
[1728263942969,3.2078,2490.3,2490.0,1.23893]
[1728263943164,3.4889,2490.3,2489.6,4.1656]
[1728263943464,6.3378,2490.3,2489.9,0.28114]
[1728263943862,6.6189,2490.3,2489.9,0.28114]
[1728263944671,3.2078,2490.3,2490.0,0.28113]
[1728263944866,1.25029,2490.4,2489.8,0.28116]
[1728263945066,3.4111,2490.3,2489.8,0.28116]
[1728263945275,3.4111,2490.3,2489.7,0.28116]
[1728263945276,0.28112,2490.2,2489.7,0.28116]
[1728263945865,3.13,2490.1,2489.6,4.1656]
[1728263946163,0.28117,2489.7,2489.2,3.48902]
[1728263946363,0.9367,2489.6,2489.1,0.28123]
[1728263946566,4.0667,2489.6,2489.0,0.9631]
[1728263946770,0.2812,2489.5,2489.0,1.24434]
[1728263947073,0.28121,2489.4,2489.0,0.9631]
[1728263947370,3.2078,2489.5,2488.9,3.2078]
[1728263947371,3.13,2489.2,2488.9,3.2078]
[1728263947562,3.41123,2489.2,2488.9,3.2078]
[1728263947764,0.9367,2489.1,2488.9,3.2078]
[1728263948071,0.8928,2489.3,2488.9,3.2078]
[1728263948372,0.9367,2489.7,2489.4,0.2812]
[1728263948564,0.9367,2489.7,2489.1,3.13]
[1728263948764,0.9367,2489.7,2489.3,0.28121]
[1728263948967,0.9367,2489.7,2489.4,0.2812]
[1728263949272,0.9367,2489.7,2489.5,1.20029]
[1728263949775,0.9367,2489.7,2489.5,0.9191]
[1728263950765,1.21787,2489.7,2489.5,0.9191]
[1728263950971,0.9367,2489.7,2489.5,0.9191]
[1728263951278,0.28118,2489.6,2489.0,1.8897]
[1728263951575,0.28119,2489.6,2489.1,1.16853]
[1728263951874,0.28119,2489.6,2489.1,0.8873]
[1728263951875,0.28122,2489.3,2489.1,0.8873]
[1728263952366,0.28121,2489.4,2489.1,0.8873]
[1728263952772,4.0991,2489.5,2489.1,0.8873]
[1728263952969,3.13,2489.2,2488.5,3.2078]
[1728263953165,0.28126,2489.0,2488.5,3.48909]
[1728263953581,0.28126,2489.0,2488.6,0.28129]
[1728263954073,0.28125,2489.0,2488.6,0.28129]
[1728263954472,3.2078,2489.2,2488.7,3.13]
[1728263954673,0.8913,2489.5,2489.1,0.28124]
[1728263954674,4.38029,2489.5,2489.1,0.28124]
[1728263954868,4.38029,2489.5,2488.9,3.13]
[1728263955070,4.38029,2489.5,2489.0,1.21364]
[1728263955778,7.2291,2489.5,2489.0,0.9324]
[1728263955976,0.9121,2489.4,2489.0,0.9324]
[1728263956168,0.9121,2489.4,2489.1,0.28123]
[1728263956780,0.9121,2489.4,2489.2,0.28122]
[1728263956984,0.9121,2489.4,2489.0,1.8304]
[1728263957179,0.9121,2489.4,2489.0,2.11164]
[1728263957376,3.2078,2489.5,2489.0,1.8304]
[1728263957577,0.28118,2489.7,2489.2,0.28122]
[1728263957778,0.28117,2489.7,2489.2,0.28122]
[1728263958371,0.28118,2489.6,2489.1,0.28123]
[1728263958879,5.0069,2489.8,2489.0,1.8304]
[1728263958880,5.28806,2489.8,2489.0,1.8304]
[1728263959380,3.2078,2489.8,2489.5,3.13]
[1728263959677,3.2078,2489.8,2489.7,0.28117]
[1728263961978,3.2078,2489.8,2489.6,3.08897]
[1728263962788,3.2078,2489.8,2489.6,2.8078]
[1728263963280,3.48896,2489.8,2489.6,1.8504]
[1728263963486,3.2078,2489.8,2489.6,1.8504]
[1728263963781,7.2246,2489.8,2489.2,0.9496]
[1728263963979,1.17588,2489.7,2489.3,0.28121]
[1728263964175,0.28118,2489.6,2489.2,2.797]
[1728263964375,0.28118,2489.6,2489.2,3.07822]
[1728263964578,0.28118,2489.6,2489.3,0.28121]
[1728263964782,0.28121,2489.4,2489.2,0.9121]
[1728263964984,0.2812,2489.4,2489.2,0.9121]
[1728263965779,3.4112,2489.5,2489.2,0.9121]
[1728263966878,1.17587,2489.7,2489.3,0.28121]
[1728263969286,1.17587,2489.7,2489.2,1.19332]
[1728263970189,0.28118,2489.6,2489.2,1.19332]
[1728263971486,0.28118,2489.6,2489.2,0.9121]
[1728263971684,0.28118,2489.6,2489.2,1.19332]
[1728263972881,0.28118,2489.6,2489.2,0.9121]
[1728263973086,0.28121,2489.4,2489.2,0.9121]
[1728263973691,0.2812,2489.5,2489.2,0.9121]
[1728263974287,0.2812,2489.4,2489.2,0.9121]
[1728263976486,0.2812,2489.4,2489.0,0.28124]
[1728263976687,4.0247,2489.7,2488.9,4.35935]
[1728263976888,0.28121,2489.4,2488.9,4.0781]
[1728263977093,4.0247,2489.7,2488.9,4.0781]
[1728263977283,0.2812,2489.5,2489.0,0.28124]
[1728263977487,0.2812,2489.5,2488.9,4.0781]
[1728263977488,0.2812,2489.5,2489.1,0.28123]
[1728263978796,0.2812,2489.4,2489.0,0.28124]
[1728263979001,4.0247,2489.7,2489.0,0.28124]
[1728263979002,0.2812,2489.5,2489.0,0.28124]